bitfinex-derivatives/quotes_BTCF0:USTF0_20250814
["timestamp","ask_amount","ask_price","bid_price","bid_amount"]
[1755175201166,0.3608,119090.0,119060.0,0.3608]
[1755175201362,0.3608,119110.0,119070.0,0.3608]
[1755175201569,0.4068,119090.0,119060.0,0.3608]
[1755175202460,0.4068,119090.0,119050.0,0.3608]
[1755175202676,0.21412,119080.0,119040.0,0.37765225]
[1755175202867,0.3608,119060.0,119040.0,0.37765225]
[1755175203075,0.3608,119050.0,119040.0,0.01685225]
[1755175203377,0.4068,119050.0,119040.0,0.01685225]
[1755175203567,0.64393,119050.0,119040.0,0.01685225]
[1755175204777,0.3608,119050.0,119040.0,0.01685225]
[1755175204976,0.3608,119060.0,119040.0,0.38565224]
[1755175205167,0.3608,119060.0,119040.0,0.01685225]
[1755175205168,0.3608,119050.0,119040.0,0.01685225]
[1755175205469,0.4068,119050.0,119040.0,0.01685225]
[1755175205674,0.3608,119060.0,119040.0,0.18565224]
[1755175205879,0.3608,119080.0,119040.0,0.21765225]
[1755175206075,0.3608,119090.0,119060.0,0.0008]
[1755175206372,0.37916798,119100.0,119070.0,0.3616]
[1755175206570,0.3608,119100.0,119070.0,0.59659703]
[1755175206872,0.42564276,119120.0,119090.0,0.3616]
[1755175207081,0.42564276,119120.0,119090.0,0.3608]
[1755175207277,0.42564276,119120.0,119100.0,0.3608]
[1755175207574,0.046,119110.0,119080.0,0.3608]
[1755175207876,0.37964276,119120.0,119070.0,0.06705303]
[1755175207877,0.21412,119080.0,119070.0,0.06705303]
[1755175208080,0.3608,119080.0,119060.0,1.1606]
[1755175208379,0.046,119070.0,119060.0,1.1606]
[1755175208877,0.28313,119050.0,119040.0,0.01685225]
[1755175209076,0.28140796,119050.0,119040.0,0.01685225]
[1755175209477,0.64220796,119050.0,119040.0,0.01685225]
[1755175209777,0.4068,119050.0,119040.0,0.01685225]
[1755175209980,0.47581,119050.0,119040.0,0.01685225]
[1755175210184,0.4068,119050.0,119040.0,0.01858225]
[1755175210481,0.4068,119070.0,119040.0,0.38485224]
[1755175210775,0.35907,119060.0,119050.0,0.00253]
[1755175210970,0.35907,119060.0,119050.0,0.169722]
[1755175211469,0.4068,119070.0,119050.0,0.167992]
[1755175211669,0.4068,119070.0,119040.0,0.01685225]
[1755175211878,0.4068,119070.0,119040.0,0.37765225]
[1755175212174,0.046,119050.0,119040.0,0.37765225]
[1755175212378,0.57492,119070.0,119040.0,0.37765225]
[1755175212574,0.4068,119070.0,119040.0,0.37765225]
[1755175212779,0.3608,119070.0,119050.0,0.3608]
[1755175213080,0.3608,119090.0,119060.0,0.3616]
[1755175213281,0.3608,119090.0,119070.0,0.3608]
[1755175213775,0.3608,119090.0,119070.0,0.528752]
[1755175213974,0.3608,119090.0,119070.0,0.167952]
[1755175214277,0.4068,119090.0,119060.0,0.42748257]
[1755175214476,0.046,119080.0,119060.0,0.42748257]
[1755175214675,0.4068,119090.0,119070.0,0.3608]
[1755175214878,0.3608,119090.0,119070.0,0.3608]
[1755175215185,0.3608,119110.0,119080.0,0.3616]
[1755175215373,0.3608,119110.0,119070.0,0.728752]
[1755175215374,0.361,119130.0,119100.0,0.3608]
[1755175215678,0.0002,119130.0,119120.0,0.3616]
[1755175215882,0.3608,119160.0,119120.0,0.3616]
[1755175216084,0.401,119160.0,119130.0,0.3608]
[1755175216476,0.401,119160.0,119130.0,0.72946399]
[1755175216679,0.0402,119160.0,119150.0,0.0008]
[1755175216978,0.116,119190.0,119150.0,0.0008]
[1755175216979,0.4308,119190.0,119150.0,0.3616]
[1755175217168,0.1,119190.0,119170.0,0.3608]
[1755175217373,0.1402,119190.0,119180.0,1.1606]
[1755175217567,0.1402,119190.0,119180.0,1.5222]
[1755175217773,0.3608,119210.0,119180.0,1.7214]
[1755175217974,0.02,119210.0,119190.0,0.3608]
[1755175218276,0.02,119210.0,119180.0,1.17767686]
[1755175218485,0.3808,119210.0,119180.0,1.70626886]
[1755175218784,0.3808,119210.0,119190.0,0.3608]
[1755175218976,0.02,119210.0,119190.0,0.3608]
[1755175219280,0.02,119210.0,119190.0,0.528584]
[1755175219575,0.046,119200.0,119180.0,1.17767686]
[1755175219775,0.156,119200.0,119180.0,1.17767686]
[1755175219978,0.156,119200.0,119180.0,1.53847686]
[1755175220572,0.11,119200.0,119190.0,0.3608]
[1755175220768,0.11,119200.0,119190.0,0.528592]
[1755175221082,0.11,119200.0,119190.0,0.728592]
[1755175221276,0.11,119200.0,119190.0,0.5608]
[1755175221482,0.046,119250.0,119190.0,0.5626]
[1755175221776,0.03331251,119250.0,119220.0,0.3608]
[1755175221969,0.03331251,119250.0,119230.0,0.3616]
[1755175222175,0.3608,119270.0,119240.0,0.3608]
[1755175222375,0.3608,119270.0,119250.0,0.3608]
[1755175222684,0.3608,119270.0,119250.0,0.42738978]
[1755175222884,0.3609,119280.0,119250.0,0.79509378]
[1755175223083,0.3609,119280.0,119250.0,0.59509378]
[1755175223575,0.4069,119280.0,119250.0,0.59509378]
[1755175223780,0.4069,119280.0,119250.0,0.42738978]
[1755175224573,0.4069,119280.0,119250.0,0.76278178]
[1755175224778,0.3609,119280.0,119250.0,0.59508578]
[1755175225194,0.40906,119280.0,119250.0,0.61215698]
[1755175225484,0.40906,119280.0,119260.0,0.3608]
[1755175225879,0.0001,119280.0,119270.0,2.66944]
[1755175226184,0.40896,119340.0,119270.0,1.53729074]
[1755175226383,0.04816,119320.0,119300.0,0.37788029]
[1755175226875,0.63641,119340.0,119300.0,0.54551229]
[1755175227082,0.59584749,119340.0,119310.0,0.3608]
[1755175227481,0.04816,119320.0,119310.0,0.3608]
[1755175227681,0.20702,119320.0,119310.0,1.50948]
[1755175227984,0.04896,119320.0,119310.0,1.50948]
[1755175228177,0.15966,119320.0,119300.0,0.37788029]
[1755175228378,0.04816,119310.0,119300.0,0.37788029]
[1755175228580,0.27641,119310.0,119300.0,0.10086159]
[1755175228780,0.05816,119310.0,119300.0,0.10086159]
[1755175228983,0.05816,119310.0,119300.0,0.26842369]
[1755175229376,0.64641,119310.0,119300.0,0.10086159]
[1755175229785,0.64641,119310.0,119300.0,0.26850158]
[1755175229786,0.3608,119310.0,119300.0,0.26850158]
[1755175229980,0.3608,119320.0,119300.0,0.43606368]
[1755175230282,0.3708,119320.0,119310.0,0.0837743]
[1755175230588,0.41896,119320.0,119310.0,0.0837743]
[1755175230777,0.3608,119330.0,119310.0,1.7607989]
[1755175231085,0.40896,119330.0,119320.0,0.0837673]
[1755175231277,0.64721,119330.0,119320.0,1.5928873]
[1755175231480,0.64641,119330.0,119320.0,1.5928873]
[1755175231777,0.57782,119330.0,119320.0,1.5928873]
[1755175231978,0.75470749,119330.0,119320.0,1.5928873]
[1755175232486,0.04816,119340.0,119330.0,0.2512726]
[1755175232780,0.41896,119350.0,119340.0,0.0837538]
[1755175233187,0.40896,119360.0,119350.0,0.0837468]
[1755175233482,0.00547641,119370.0,119350.0,0.6120363]
[1755175233675,0.05363641,119370.0,119360.0,0.4445398]
[1755175233880,1e-08,119370.0,119360.0,0.4445398]
[1755175234076,1e-08,119380.0,119360.0,0.6128152]
[1755175234280,0.3608,119400.0,119380.0,0.2972072]
[1755175234484,0.23745,119400.0,119390.0,1.7599862]
[1755175234691,0.0831779,119400.0,119390.0,2.1207862]
[1755175234988,0.42939,119420.0,119410.0,0.0837047]
[1755175235187,0.37941715,119430.0,119410.0,0.2511095]
[1755175235384,0.08800715,119430.0,119420.0,1.5925371]
[1755175235578,0.06869,119430.0,119420.0,1.5925371]
[1755175235779,0.43029,119430.0,119420.0,0.0836971]
[1755175235984,0.43029,119430.0,119420.0,0.0814671]
[1755175236188,0.42949,119430.0,119420.0,0.0814671]
[1755175236381,0.47765,119430.0,119420.0,0.0814671]
[1755175236782,0.27571,119430.0,119420.0,0.0814671]
[1755175238184,0.63651,119430.0,119420.0,1.5898271]
[1755175238988,0.27561,119420.0,119410.0,1.7594695]
[1755175239185,0.63641,119420.0,119410.0,0.2511095]
[1755175239385,0.63641,119420.0,119410.0,1.6757648]
[1755175239784,0.3608,119420.0,119410.0,1.8806648]
[1755175239990,0.3609,119430.0,119420.0,0.2425571]
[1755175240292,0.0001,119430.0,119420.0,0.6493971]
[1755175240496,0.0001,119430.0,119420.0,0.8168691]
[1755175240687,1e-07,119430.0,119420.0,0.8168691]
[1755175241486,1e-07,119430.0,119420.0,0.0836971]
[1755175241699,0.6372101,119430.0,119420.0,0.0836971]
[1755175241882,0.6364101,119430.0,119420.0,0.0836971]
[1755175242696,0.4089601,119430.0,119420.0,0.2425571]
[1755175242990,1e-07,119430.0,119420.0,0.2972091]
[1755175243399,1e-07,119430.0,119420.0,0.6127691]
[1755175243583,1e-07,119430.0,119420.0,0.6119691]
[1755175243895,1e-07,119430.0,119420.0,0.6127691]
[1755175244190,1e-07,119430.0,119420.0,0.8127691]
[1755175244397,0.04816,119470.0,119460.0,0.083669]
[1755175244600,0.58825,119490.0,119470.0,0.2509764]
[1755175244793,0.58825,119490.0,119480.0,0.083655]
[1755175244794,0.27561,119490.0,119480.0,0.083655]
[1755175244984,0.04816,119490.0,119480.0,0.242515]
[1755175245184,0.27561,119490.0,119480.0,0.083655]
[1755175245493,0.04816,119490.0,119480.0,0.242515]
[1755175245693,0.40896,119500.0,119490.0,0.242508]
[1755175246091,0.04816,119500.0,119490.0,0.242508]
[1755175246392,0.51966,119510.0,119490.0,0.4106001]
[1755175246597,0.40896,119510.0,119500.0,1.749781]
[1755175246796,0.3608,119510.0,119500.0,1.749781]
[1755175246999,0.40896,119520.0,119510.0,0.083634]
[1755175247196,0.63641,119520.0,119510.0,0.083634]
[1755175247791,0.27561,119510.0,119500.0,1.8418435]
[1755175248393,0.20702,119510.0,119500.0,2.0007035]
[1755175248797,0.27561,119500.0,119490.0,1.590483]
[1755175249095,0.27561,119500.0,119480.0,0.1673043]
[1755175249096,0.27641,119490.0,119470.0,0.1673188]
[1755175249299,0.76976,119480.0,119470.0,0.246562]
[1755175249599,0.20702,119480.0,119470.0,1.753402]
[1755175249795,0.20702,119480.0,119470.0,1.590502]
[1755175249990,0.27561,119470.0,119460.0,0.26824377]
[1755175250187,0.27561,119470.0,119460.0,1.77508377]
[1755175250399,0.3608,119480.0,119470.0,0.083662]
[1755175250599,0.3608,119480.0,119470.0,0.246562]
[1755175250793,0.56782,119490.0,119480.0,0.083655]
[1755175250989,0.63641,119490.0,119480.0,0.083655]
[1755175251189,0.63641,119490.0,119480.0,1.50664]
[1755175251395,0.3608,119490.0,119470.0,0.2509822]
[1755175251596,0.2162921,119470.0,119460.0,1.50664]
[1755175251797,0.27561,119450.0,119440.0,1.1578]
[1755175251999,0.99801,119450.0,119440.0,2.748123]
[1755175252303,0.27641,119430.0,119420.0,1.6740296]
[1755175252497,0.99721,119430.0,119420.0,1.50664]
[1755175252698,0.99801,119430.0,119420.0,1.50664]
[1755175252901,0.99721,119430.0,119420.0,1.5903371]
[1755175253197,0.99801,119430.0,119420.0,1.5903371]
[1755175253398,0.99721,119430.0,119420.0,1.5903371]
[1755175253897,0.3608,119440.0,119420.0,1.8305571]
[1755175254102,0.65257,119450.0,119440.0,0.083683]
[1755175254600,0.60377,119470.0,119450.0,0.4188284]
[1755175254790,0.04986,119470.0,119460.0,2.119119]
[1755175254997,0.22318,119480.0,119470.0,0.083662]
[1755175255208,0.65363,119490.0,119480.0,0.083655]
[1755175256098,0.29283,119490.0,119480.0,0.083655]
[1755175256292,0.3608,119500.0,119480.0,0.250961]
[1755175256601,0.22318,119490.0,119480.0,0.250961]
[1755175256798,0.65363,119490.0,119480.0,0.250961]
[1755175257105,0.65363,119490.0,119480.0,1.757641]
[1755175257297,0.65363,119490.0,119480.0,1.50668]
[1755175257505,0.65363,119490.0,119480.0,1.590335]
[1755175257711,0.29283,119470.0,119460.0,0.250998]
[1755175258003,0.29283,119470.0,119460.0,1.5903457]
[1755175258004,1.01443,119470.0,119460.0,1.5903457]
[1755175259293,1.01443,119470.0,119460.0,0.0836657]
[1755175259601,1.01443,119470.0,119460.0,1.5903457]
[1755175260009,0.29283,119460.0,119450.0,0.1673443]
[1755175260300,0.41066,119470.0,119450.0,1.9263087]
[1755175260491,0.65363,119470.0,119460.0,0.083669]
[1755175260903,0.29283,119460.0,119450.0,0.0836718]
[1755175261103,0.65363,119460.0,119450.0,0.0336718]
[1755175261296,0.65363,119460.0,119450.0,1.590356]
[1755175262701,0.55238,119460.0,119450.0,1.639266]
[1755175262901,0.65363,119460.0,119450.0,1.590396]
[1755175263407,0.737299,119460.0,119450.0,0.083676]
[1755175263611,0.904723,119460.0,119450.0,1.590396]
[1755175263803,0.29283,119440.0,119430.0,0.2510607]
[1755175264002,0.65363,119440.0,119430.0,1.7577807]
[1755175264503,0.65363,119440.0,119430.0,0.2510607]
[1755175264704,0.65363,119440.0,119430.0,1.7577807]
[1755175265304,0.58398,119440.0,119430.0,1.7577807]
[1755175265507,0.58398,119450.0,119440.0,0.0844831]
[1755175265710,0.3608,119450.0,119440.0,0.3004031]
[1755175265902,0.53412,119450.0,119440.0,0.3004031]
[1755175266105,0.65363,119450.0,119440.0,0.0836831]
[1755175266997,0.65363,119450.0,119440.0,0.083683]
[1755175267401,0.29283,119440.0,119430.0,0.2510595]
[1755175267598,0.65363,119440.0,119430.0,1.7578995]
[1755175267999,0.3608,119440.0,119430.0,1.9754195]
[1755175268200,0.58398,119450.0,119440.0,0.083683]
[1755175268398,0.94478,119450.0,119440.0,0.083683]
[1755175268597,0.3608,119460.0,119450.0,0.2510168]
[1755175268806,0.67209782,119470.0,119460.0,0.083669]
[1755175269010,0.60244782,119470.0,119460.0,1.807229]
[1755175269309,0.24164782,119470.0,119460.0,1.807229]
[1755175269511,0.24164782,119470.0,119460.0,1.808029]
[1755175269811,0.24164782,119470.0,119460.0,1.807229]
[1755175270001,0.75575992,119470.0,119460.0,1.5905091]
[1755175270204,0.67209782,119470.0,119460.0,1.5905091]
[1755175270513,0.75575992,119470.0,119460.0,1.50684]
[1755175271005,0.75575992,119470.0,119460.0,1.5905091]
[1755175271304,0.67209782,119470.0,119460.0,1.5905091]
[1755175271506,0.65363,119470.0,119460.0,1.5905091]
[1755175271910,0.3608,119470.0,119460.0,1.8080291]
[1755175272103,0.67209301,119490.0,119470.0,0.4677018]
[1755175272302,0.67209301,119490.0,119480.0,1.590495]
[1755175273198,0.67289301,119490.0,119480.0,1.50684]
[1755175273407,0.92392511,119490.0,119480.0,1.50684]
[1755175273602,1.12392511,119490.0,119480.0,1.20684]
[1755175273802,1.12392511,119490.0,119480.0,0.95618]
[1755175274199,1.12392511,119490.0,119480.0,0.88118]
[1755175274404,1.12392511,119490.0,119440.0,0.38999065]
[1755175274405,0.06965,119460.0,119450.0,0.1325857]
[1755175274608,0.79125,119460.0,119450.0,1.6394257]
[1755175275006,0.874919,119460.0,119450.0,1.7144905]
[1755175275207,0.083676,119450.0,119440.0,0.1673585]
[1755175275408,0.43045,119450.0,119440.0,1.7578002]
[1755175275715,0.43045,119450.0,119440.0,1.8067102]
[1755175276205,0.682366,119450.0,119440.0,0.07507253]
[1755175276411,0.682366,119450.0,119440.0,0.15875553]
[1755175276709,0.52824,119450.0,119440.0,0.15875755]
[1755175277013,0.681566,119450.0,119440.0,0.20766755]
[1755175277307,0.3608,119450.0,119440.0,0.37547755]
[1755175277508,0.37924295,119460.0,119440.0,0.2518449]
[1755175277722,0.37924295,119460.0,119450.0,0.44787018]
[1755175278212,0.01844295,119460.0,119450.0,0.373606]
[1755175278402,0.01844295,119460.0,119450.0,0.372806]
[1755175278813,0.01844295,119460.0,119450.0,0.373606]
[1755175279107,0.00013803,119480.0,119470.0,0.372792]
[1755175279313,0.36093803,119480.0,119470.0,1.879672]
[1755175279911,0.43058803,119480.0,119470.0,1.71450259]
[1755175280114,0.43058803,119480.0,119470.0,1.88231259]
[1755175280411,0.68164303,119480.0,119470.0,0.20762259]
[1755175280605,0.51424303,119480.0,119470.0,0.19260438]
[1755175280910,0.43058803,119480.0,119470.0,1.56691238]
[1755175281100,0.61642803,119480.0,119470.0,0.14369438]
[1755175281301,0.52833803,119480.0,119470.0,1.69936438]
[1755175281601,0.36093803,119480.0,119470.0,1.807142]
[1755175282000,0.36093803,119480.0,119470.0,1.94038207]
[1755175282001,0.00013803,119480.0,119470.0,1.94038207]
[1755175282197,0.00013803,119480.0,119470.0,2.241152]
[1755175282404,0.01846301,119490.0,119480.0,0.373585]
[1755175282600,0.37980508,119510.0,119500.0,0.132551]
[1755175282804,0.48203908,119510.0,119500.0,1.639311]
[1755175283110,0.39840508,119510.0,119500.0,1.639311]
[1755175283413,0.37980508,119510.0,119500.0,1.807121]
[1755175283608,0.39840508,119510.0,119500.0,0.132551]
[1755175283808,0.55168908,119510.0,119500.0,1.55567]
[1755175284111,0.71904908,119510.0,119500.0,1.55551]
[1755175284317,0.55168908,119510.0,119500.0,1.55551]
[1755175284501,0.253802,119500.0,119480.0,0.22785914]
[1755175284809,0.891758,119490.0,119480.0,1.55657]
[1755175285204,0.861758,119490.0,119480.0,1.61661914]
[1755175286615,0.170165,119480.0,119470.0,0.06004914]
[1755175286803,0.550205,119480.0,119470.0,0.06004914]
[1755175287114,0.444455,119480.0,119470.0,1.5066]
[1755175287413,0.530965,119480.0,119470.0,1.640232]
[1755175288414,0.3608,119480.0,119470.0,1.878562]
[1755175288806,0.3608,119490.0,119470.0,2.0458819]
[1755175288999,0.3608,119490.0,119480.0,1.8785551]
[1755175289206,0.3608,119490.0,119480.0,1.8793551]
[1755175289400,0.3608,119500.0,119490.0,0.0836481]
[1755175289600,0.37980508,119510.0,119490.0,0.0836481]
[1755175289601,0.01900508,119510.0,119500.0,0.3727411]
[1755175289818,0.01900508,119510.0,119500.0,2.2401411]
[1755175290113,0.00099,119520.0,119510.0,0.3727341]
[1755175290309,1e-07,119520.0,119510.0,1.18164528]
[1755175290514,0.01899882,119540.0,119530.0,0.3719201]
[1755175290710,0.03717999,119540.0,119530.0,2.2401201]
[1755175291011,0.00787165,119570.0,119560.0,0.3718991]
[1755175291215,0.3608,119570.0,119560.0,2.0456931]
[1755175291421,0.01818233,119570.0,119560.0,2.0456931]
[1755175291712,0.0001,119580.0,119570.0,0.3718921]
[1755175291900,0.0182763,119580.0,119570.0,0.3718921]
[1755175292309,0.4626614,119580.0,119570.0,0.3718921]
[1755175292516,0.1018614,119580.0,119570.0,0.3718921]
[1755175292711,0.90795741,119580.0,119570.0,1.5066]
[1755175292902,0.6251014,119580.0,119570.0,1.6401621]
[1755175293218,0.4626614,119580.0,119570.0,1.8784921]
[1755175293404,0.3790763,119580.0,119570.0,1.8784921]
[1755175293605,0.4626615,119580.0,119570.0,1.89533976]
[1755175293808,0.3790763,119580.0,119570.0,1.89533976]
[1755175294112,0.0182763,119580.0,119570.0,1.89533976]
[1755175294507,0.0182763,119580.0,119570.0,1.89613976]
[1755175294714,0.3608,119590.0,119580.0,0.4554645]
[1755175295008,0.4443782,119590.0,119580.0,0.4554645]
[1755175295407,0.3608,119590.0,119580.0,0.4554645]
[1755175295609,0.6545082,119590.0,119580.0,0.4658797]
[1755175296014,0.3608,119590.0,119580.0,0.5390497]
[1755175296215,0.4443782,119590.0,119580.0,0.5390497]
[1755175296511,0.7224182,119590.0,119580.0,1.5897852]
[1755175296710,0.0835922,119570.0,119560.0,1.756987]
[1755175296902,1.0832322,119570.0,119560.0,1.756987]
[1755175297105,0.2460461,119550.0,119540.0,0.2508299]
[1755175297306,1.0153361,119550.0,119540.0,1.6731398]
[1755175297502,0.3608,119550.0,119540.0,1.9614398]
[1755175297712,0.8052061,119550.0,119540.0,1.9614398]
[1755175297915,0.8052061,119550.0,119540.0,0.4555198]
[1755175298205,1.0153361,119550.0,119540.0,1.5895331]
[1755175298405,0.93173,119550.0,119540.0,1.5895331]
[1755175298607,0.7216,119550.0,119540.0,1.8778331]
[1755175298804,0.4132305,119570.0,119550.0,0.250807]
[1755175298805,0.3608,119560.0,119550.0,0.250807]
[1755175299014,0.5756699,119580.0,119570.0,0.0835921]
[1755175299206,0.4920751,119580.0,119570.0,1.8045621]
[1755175299402,0.3608,119580.0,119570.0,0.3718921]
[1755175299606,0.0835922,119570.0,119560.0,0.1671882]
[1755175299809,0.63884,119570.0,119560.0,0.0835933]
[1755175300006,0.3608,119570.0,119560.0,0.3718933]
[1755175300408,0.4443922,119570.0,119560.0,0.3718933]
[1755175300617,0.4443922,119570.0,119560.0,1.8777333]
[1755175300915,0.52324,119570.0,119560.0,1.8045633]
[1755175301105,0.3608,119580.0,119570.0,0.3718922]
[1755175301310,0.4443852,119580.0,119570.0,0.2903201]
[1755175301519,0.857597,119580.0,119560.0,0.4659215]
[1755175301708,0.0835922,119570.0,119560.0,0.4659215]
[1755175301908,0.4443922,119570.0,119560.0,0.4554924]
[1755175302115,0.0836061,119550.0,119540.0,0.4555183]
[1755175302412,0.4444061,119550.0,119540.0,1.79406]
[1755175302621,0.6068461,119550.0,119540.0,1.8045031]
[1755175302916,0.4444061,119550.0,119540.0,1.829765]
[1755175303110,0.65453,119560.0,119540.0,0.2403925]
[1755175303307,0.3608,119560.0,119550.0,0.0836061]
[1755175303504,0.4443991,119560.0,119550.0,0.2883]
[1755175303708,1.0153291,119560.0,119550.0,0.1335761]
[1755175303903,0.3608,119560.0,119550.0,1.8776661]
[1755175304507,0.5279948,119570.0,119560.0,0.2987292]
[1755175304909,0.1672087,119560.0,119540.0,0.1672231]
[1755175305121,1.1825604,119550.0,119540.0,0.0836132]
[1755175305419,1.1825604,119550.0,119530.0,0.3719162]
[1755175305420,0.0836132,119540.0,119530.0,0.3719162]
[1755175305618,0.0836132,119540.0,119520.0,0.26806664]
[1755175305619,0.0836201,119530.0,119520.0,0.39956944]
[1755175305813,0.8896912,119540.0,119530.0,0.0836201]
[1755175306111,0.6904722,119540.0,119530.0,0.2987501]
[1755175306311,0.5280322,119540.0,119530.0,0.2987501]
[1755175306512,0.5280322,119540.0,119530.0,0.3719201]
[1755175306719,0.4444136,119540.0,119530.0,0.3719201]
[1755175307114,0.3608,119550.0,119540.0,0.2987436]
[1755175307309,0.3608,119550.0,119540.0,2.0448565]
[1755175307516,0.5279922,119570.0,119560.0,0.0836002]
[1755175307823,0.67244372,119570.0,119560.0,0.2987302]
[1755175308011,0.58885052,119570.0,119560.0,0.2987302]
[1755175308207,0.67244372,119570.0,119560.0,0.2987302]
[1755175308816,0.62475372,119570.0,119560.0,0.3719002]
[1755175309021,0.67244372,119570.0,119560.0,0.2987302]
[1755175309418,0.58885052,119570.0,119560.0,0.2987302]
[1755175309722,0.54116052,119570.0,119560.0,0.2987302]
[1755175309917,0.54116052,119570.0,119560.0,0.3719002]
[1755175309918,0.37872052,119570.0,119560.0,0.3719002]
[1755175310219,0.01792052,119570.0,119560.0,0.3719002]
[1755175311621,0.01792052,119570.0,119560.0,1.8776202]
[1755175312016,0.3608,119580.0,119570.0,0.3718933]
[1755175312219,0.37871932,119580.0,119570.0,0.3718933]
[1755175312608,0.37871932,119580.0,119570.0,0.0835933]
[1755175312609,0.74034562,119580.0,119570.0,0.0835933]
[1755175313215,0.74034632,119580.0,119570.0,0.0835933]
[1755175313615,0.74034632,119580.0,119570.0,0.1335633]
[1755175314019,0.58884932,119580.0,119570.0,0.3824233]
[1755175314221,0.46230632,119580.0,119570.0,0.3824233]
[1755175314420,0.74890632,119580.0,119570.0,0.0835933]
[1755175314621,0.91609332,119580.0,119570.0,0.083594]
[1755175315721,0.74890632,119580.0,119570.0,0.083594]
[1755175316324,0.66531932,119580.0,119570.0,0.083594]
[1755175316511,0.37871932,119580.0,119570.0,0.381334]
[1755175316818,0.01791932,119580.0,119570.0,0.381334]
[1755175317022,0.23186932,119580.0,119570.0,0.381334]
[1755175317213,0.67625632,119580.0,119570.0,0.381334]
[1755175317420,0.59266932,119580.0,119570.0,0.381334]
[1755175317725,0.23186932,119580.0,119570.0,0.381334]
[1755175317915,0.66531932,119580.0,119570.0,0.083594]
[1755175318219,0.74890622,119580.0,119570.0,0.083594]
[1755175318922,0.37871932,119580.0,119570.0,0.381334]
[1755175319322,0.54285932,119580.0,119570.0,0.381334]
[1755175319718,0.66531932,119580.0,119570.0,0.083594]
[1755175319921,0.7309869,119580.0,119570.0,0.14364314]
[1755175320122,0.6474,119580.0,119570.0,1.64916314]
[1755175320319,0.46319066,119590.0,119580.0,0.0835869]
[1755175320520,0.67714066,119590.0,119580.0,0.0835869]
[1755175320716,0.3608,119590.0,119580.0,0.3813269]
[1755175321021,0.3608,119600.0,119580.0,0.75928058]
[1755175321229,0.3608,119600.0,119590.0,0.39248904]
[1755175321526,0.5129126,119610.0,119600.0,0.1324529]
[1755175321823,0.7497026,119610.0,119600.0,1.6379729]
[1755175322020,0.6661367,119610.0,119600.0,1.6379729]
[1755175322225,0.7497026,119610.0,119600.0,1.50552]
[1755175322423,0.7497026,119610.0,119600.0,1.5890929]
[1755175323426,0.5934867,119610.0,119600.0,1.8868329]
[1755175323724,0.4631026,119610.0,119600.0,1.8868329]
[1755175323924,0.3795367,119610.0,119600.0,1.8868329]
[1755175324323,0.0187367,119610.0,119600.0,1.8868329]
[1755175325026,0.0187367,119610.0,119600.0,2.2484329]
[1755175325324,0.52502,119640.0,119630.0,0.0835519]
[1755175325524,0.36088,119640.0,119630.0,1.8874919]
[1755175325821,8e-05,119640.0,119630.0,2.69596674]
[1755175326025,8e-05,119640.0,119630.0,2.2474919]
[1755175326331,8e-05,119640.0,119630.0,1.8866919]
[1755175326621,0.36088,119640.0,119630.0,1.8866919]
[1755175326820,0.494235,119640.0,119630.0,0.0835519]
[1755175327126,0.6841777,119640.0,119630.0,1.5887919]
[1755175327330,0.6841777,119640.0,119630.0,1.50524]
[1755175327515,0.3701519,119630.0,119620.0,1.5887947]
[1755175327718,0.3608,119630.0,119620.0,1.8306083]
[1755175327922,0.37963805,119640.0,119630.0,0.332412]
[1755175328224,0.01883805,119640.0,119630.0,0.332412]
[1755175328424,0.01883805,119640.0,119630.0,0.381292]
[1755175329022,0.37963805,119640.0,119630.0,0.381292]
[1755175329214,0.01883805,119640.0,119630.0,0.381292]
[1755175330318,0.01883805,119640.0,119630.0,0.742092]
[1755175330914,0.01883805,119640.0,119630.0,1.19056684]
[1755175331128,0.01883805,119640.0,119630.0,0.381292]
[1755175332528,0.01883805,119640.0,119630.0,0.742092]
[1755175333426,0.3608,119680.0,119670.0,0.4647824]
[1755175333631,0.2866,119690.0,119680.0,0.083517]
[1755175333816,0.57475,119690.0,119680.0,0.381257]
[1755175334425,0.6582602,119690.0,119680.0,0.381257]
[1755175334614,0.814425,119690.0,119670.0,2.0532246]
[1755175334815,0.6084502,119690.0,119680.0,0.22304]
[1755175335021,0.8144261,119690.0,119680.0,0.0835175]
[1755175335315,0.6474,119690.0,119680.0,0.3065575]
[1755175335521,0.52494,119690.0,119680.0,0.3812575]
[1755175335929,0.57475,119690.0,119680.0,0.3812575]
[1755175336517,0.57475,119690.0,119670.0,0.2505646]
[1755175336518,0.4451162,119690.0,119670.0,0.2505646]
[1755175336717,1.17859234,119680.0,119670.0,0.083521]
[1755175336918,1.09507484,119680.0,119670.0,0.083521]
[1755175337330,1.17859234,119680.0,119670.0,0.083521]
[1755175337928,0.8980375,119680.0,119670.0,0.083521]
[1755175338323,0.6474,119680.0,119670.0,0.083521]
[1755175338526,0.3608,119680.0,119670.0,0.381261]
[1755175338735,0.57475,119680.0,119670.0,0.381261]
[1755175338922,0.6474,119680.0,119670.0,0.083521]
[1755175339429,0.7309177,119680.0,119670.0,0.083521]
[1755175340127,0.6474,119680.0,119670.0,0.083521]
[1755175340331,1.34564044,119680.0,119660.0,0.334115]
[1755175340529,0.7309246,119670.0,119660.0,0.334115]
[1755175340929,0.7309246,119670.0,119660.0,0.2505858]
[1755175341432,0.74928165,119670.0,119660.0,0.2505858]
[1755175341644,0.74928165,119670.0,119660.0,0.1670572]
[1755175341826,0.74928165,119670.0,119660.0,0.0835286]
[1755175343326,0.0835355,119660.0,119640.0,0.2330488]
[1755175343630,0.0835355,119660.0,119640.0,0.1006274]
[1755175343631,0.6474,119650.0,119640.0,0.1006274]
[1755175343833,0.6474,119650.0,119640.0,0.1324255]
[1755175344038,1.0917385,119650.0,119640.0,0.0835455]
[1755175344335,1.0082,119650.0,119640.0,0.0835455]
[1755175344526,1.0082,119650.0,119640.0,0.1290155]
[1755175344728,0.7216,119650.0,119640.0,0.3582855]
[1755175344925,0.3608,119650.0,119640.0,0.3582855]
[1755175345129,0.3608,119650.0,119640.0,0.3590855]
[1755175345328,0.01835705,119670.0,119660.0,0.3582715]
[1755175345739,0.30493705,119670.0,119660.0,0.3582715]
[1755175346439,0.01835705,119670.0,119660.0,0.3582715]
[1755175346630,0.3608,119680.0,119670.0,0.2505623]
[1755175346826,0.3700975,119680.0,119670.0,0.20493]